bitfinex-derivatives/quotes_ETHF0:USTF0_20260118
["timestamp","ask_amount","ask_price","bid_price","bid_amount"]
[1768714326358,0.98221266,3316.9,3315.5,0.14320385]
[1768714326559,0.98221266,3316.8,3315.5,0.14320385]
[1768714326760,0.15078,3317.1,3315.5,0.14320385]
[1768714326956,1.24279976,3317.0,3315.5,0.14320385]
[1768714327170,1.24279976,3317.0,3314.8,0.15089]
[1768714327171,2.342719,3316.9,3315.0,0.14020591]
[1768714327467,0.98226682,3316.8,3315.0,0.14020591]
[1768714331075,0.97060942,3316.9,3315.0,0.14020591]
[1768714332277,0.98293593,3316.8,3315.0,0.14020591]
[1768714332486,0.97060942,3316.9,3315.0,0.14020591]
[1768714332680,0.98295169,3316.8,3315.0,0.14020591]
[1768714332978,0.97060942,3316.9,3315.0,0.14020591]
[1768714333277,0.98295169,3316.8,3315.0,0.14020591]
[1768714333468,0.97060942,3316.9,3315.0,0.14020591]
[1768714333672,0.98307611,3316.8,3315.0,0.14020591]
[1768714333868,0.97060942,3316.9,3315.0,0.14020591]
[1768714334077,0.98307659,3316.8,3315.0,0.14020591]
[1768714334285,0.97060942,3316.9,3315.0,0.14020591]
[1768714334586,0.98321355,3316.8,3315.0,0.14020591]
[1768714334887,0.97060942,3316.9,3315.0,0.14020591]
[1768714335072,0.98321378,3316.8,3315.0,0.14020591]
[1768714335272,0.97060942,3316.9,3315.0,0.14020591]
[1768714335481,0.98340425,3316.8,3315.0,0.14020591]
[1768714335684,0.97060942,3316.9,3315.0,0.14020591]
[1768714335882,0.12929576,3316.4,3314.9,0.146]
[1768714336079,0.97060942,3316.1,3314.9,0.146]
[1768714336277,0.97060942,3316.1,3314.6,0.14020591]
[1768714336585,1.09990518,3316.1,3314.6,0.14020591]
[1768714338186,0.12929576,3316.0,3314.4,0.0024188]
[1768714339385,0.97167509,3315.4,3314.4,0.0024188]
[1768714371011,0.97167509,3315.2,3314.4,0.0024188]
[1768714372024,0.97167509,3315.0,3314.4,0.0024188]
[1768714372622,0.97167509,3315.0,3313.8,2.70626359]
[1768714373715,0.97167509,3315.0,3313.8,2.71007584]
[1768714374124,0.97167509,3315.0,3313.8,0.29122969]
[1768714382631,0.97167509,3314.4,3313.8,0.00381225]
[1768714382935,0.97470884,3314.4,3313.8,0.00381225]
[1768714383430,0.97470884,3314.4,3313.4,0.15095]
[1768714384239,0.97470884,3314.4,3313.1,2.79567509]
[1768714384538,0.97470884,3314.4,3313.1,2.79903917]
[1768714387340,0.97470884,3314.4,3313.1,1.12103917]
[1768714387539,0.97470884,3314.4,3313.1,2.80003917]
[1768714388038,0.97167509,3314.1,3313.1,0.00336408]
[1768714390437,0.97167509,3313.9,3313.1,0.00336408]
[1768714392932,0.14061277,3314.3,3313.1,0.00336408]
[1768714393132,0.97167509,3314.2,3313.1,0.00336408]
[1768714393543,0.00303375,3314.4,3313.5,0.97167509]
[1768714396542,0.00303375,3314.4,3313.3,0.97167509]
[1768714400042,0.97470884,3314.4,3313.1,0.1456029]
[1768714400238,0.97470884,3314.4,3313.1,0.00336408]
[1768714400239,0.97167509,3314.2,3313.1,0.00336408]
[1768714400449,0.97167509,3314.0,3313.1,0.00336408]
[1768714401347,0.00303375,3314.4,3313.1,0.00336408]
[1768714416256,0.13971244,3314.4,3313.1,0.00336408]
[1768714427871,1.10908684,3314.2,3313.1,0.00336408]
[1768714428265,0.13667869,3314.1,3313.1,0.00336408]
[1768714441481,0.13667869,3314.1,3312.3,0.14123386]
[1768714442488,0.13667869,3314.1,3312.3,0.14358533]
[1768714442983,0.00303375,3314.4,3312.6,0.13028772]
[1768714445087,0.00303375,3314.4,3312.6,0.27628772]
[1768714445386,0.00303375,3314.4,3312.7,0.13028772]
[1768714447187,0.13625857,3314.4,3312.7,0.13028772]
[1768714447486,1.10866672,3314.4,3312.7,0.13028772]
[1768714448190,0.99355569,3314.3,3312.7,0.13028772]
[1768714448390,1.10866672,3314.4,3312.7,0.13028772]
[1768714448588,0.99358063,3314.3,3312.7,0.13028772]
[1768714448789,1.10866672,3314.4,3312.7,0.13028772]
[1768714449086,0.99355939,3314.3,3312.7,0.13028772]
[1768714449288,0.00303375,3314.4,3312.7,0.13028772]
[1768714452396,0.99379,3314.3,3312.7,0.13028772]
[1768714452590,0.00303375,3314.4,3312.7,0.13028772]
[1768714452791,0.99379,3314.3,3312.7,0.13028772]
[1768714452992,0.00303375,3314.4,3312.7,0.13028772]
[1768714453191,0.99379076,3314.3,3312.7,0.13028772]
[1768714453489,0.00303375,3314.4,3312.7,0.13028772]
[1768714453692,0.99388545,3314.3,3312.7,0.13028772]
[1768714453893,0.00303375,3314.4,3312.7,0.13028772]
[1768714454094,0.99388468,3314.3,3312.7,0.13028772]
[1768714454291,0.00303375,3314.4,3312.7,0.13028772]
[1768714454491,1.12722769,3314.3,3312.7,0.13028772]
[1768714454694,0.13322482,3314.3,3312.7,0.13028772]
[1768714455596,0.13322482,3314.3,3312.4,0.28127772]
[1768714456200,0.97240815,3314.1,3312.4,0.28127772]
[1768714456402,1.10563297,3314.1,3312.4,0.28127772]
[1768714458408,0.97240815,3314.2,3312.5,0.13028772]
[1768714458616,0.00303375,3314.4,3312.5,0.13028772]
[1768714458913,1.25899574,3314.3,3312.5,0.13028772]
[1768714459112,1.25899574,3314.2,3312.5,0.13028772]
[1768714459315,0.00303375,3314.4,3312.5,0.13028772]
[1768714459614,1.2589602,3314.3,3312.5,0.13028772]
[1768714459814,1.2589602,3314.2,3312.5,0.13028772]
[1768714460015,0.00303375,3314.4,3312.5,0.13028772]
[1768714460217,1.2589597,3314.3,3312.5,0.13028772]
[1768714460520,1.2589597,3314.2,3312.5,0.13028772]
[1768714460818,0.00303375,3314.4,3312.5,0.13028772]
[1768714461022,1.25894228,3314.3,3312.5,0.13028772]
[1768714461209,1.25894228,3314.2,3312.5,0.13028772]
[1768714461408,0.00303375,3314.4,3312.5,0.13028772]
[1768714461610,1.25889506,3314.3,3312.5,0.13028772]
[1768714461810,1.25889506,3314.2,3312.5,0.13028772]
[1768714462009,0.00303375,3314.4,3312.5,0.13028772]
[1768714462217,1.2588952,3314.3,3312.5,0.13028772]
[1768714462416,0.99198163,3314.2,3312.5,0.13028772]
[1768714462615,0.00303375,3314.4,3312.5,0.13028772]
[1768714462817,0.99201437,3314.3,3312.5,0.13028772]
[1768714463021,0.00303375,3314.4,3312.5,0.13028772]
[1768714463215,0.9920128,3314.3,3312.5,0.13028772]
[1768714463417,0.97234559,3314.2,3312.9,1.11262471]
[1768714463620,0.97234559,3314.2,3312.9,0.14027912]
[1768714466710,0.97234559,3314.3,3313.0,1.11262471]
[1768714466912,0.97537934,3314.4,3313.1,0.14027912]
[1768714467129,0.99204999,3314.3,3313.1,0.14027912]
[1768714467416,0.97537934,3314.4,3313.1,0.14027912]
[1768714467610,0.99203867,3314.3,3313.1,0.14027912]
[1768714467810,0.97537934,3314.4,3313.1,0.14027912]
[1768714468018,0.99203867,3314.3,3313.1,0.14027912]
[1768714468220,0.97537934,3314.4,3313.1,0.14027912]
[1768714470015,0.00303375,3314.4,3313.1,0.14027912]
[1768714470217,0.97234559,3314.3,3313.1,0.14027912]
[1768714474931,0.00303375,3314.4,3313.6,0.97234559]
[1768714475220,0.00303375,3314.4,3313.3,0.13106113]
[1768714481229,0.00303375,3314.4,3312.8,0.15097]
[1768714481230,0.97234559,3314.1,3312.9,0.13106113]
[1768714489032,0.97234559,3314.3,3313.0,0.97234559]
[1768714489233,0.00303375,3314.4,3313.1,0.13106113]
[1768714490936,0.00303375,3314.4,3313.2,1.10340672]
[1768714500545,0.00303375,3314.4,3313.3,0.13345853]
[1768714507458,0.97537934,3314.4,3313.3,0.13345853]
[1768714510967,0.00303375,3314.4,3313.3,0.13345853]
[1768714512271,0.00303375,3314.4,3313.5,0.13345853]
[1768714541196,1.82886,3315.4,3313.5,0.13345853]
[1768714541393,1.24544252,3315.3,3313.5,0.13345853]
[1768714541592,0.98639146,3315.2,3313.5,0.13345853]
[1768714541786,1.82886,3315.4,3313.5,0.13345853]
[1768714541987,1.24539629,3315.3,3313.5,0.13345853]
[1768714542193,0.00261087,3315.3,3313.5,0.13345853]
[1768714547802,0.00261087,3315.3,3313.5,0.27945853]
[1768714549104,0.00261087,3315.3,3313.6,0.13934131]
[1768714553511,0.00261087,3315.3,3313.6,0.28534131]
[1768714553820,0.00261087,3315.3,3313.7,0.13433527]
[1768714566423,0.98689405,3315.2,3313.7,0.13433527]
[1768714566717,0.00261087,3315.3,3313.7,0.13433527]
[1768714566922,0.98689407,3315.2,3313.7,0.13433527]
[1768714567122,0.00261087,3315.3,3313.7,0.13433527]
[1768714567331,0.97203747,3315.0,3313.7,0.13433527]
[1768714570239,0.97203747,3315.0,3313.5,0.146]
[1768714571138,0.97203747,3315.0,3313.3,0.13433527]
[1768714582547,0.14284052,3314.9,3313.1,0.27965207]
[1768714583150,0.14284052,3314.9,3313.2,0.13365207]
[1768714583352,0.97225992,3314.4,3313.2,0.13365207]
[1768714597459,0.97225992,3314.4,3313.2,1.10591199]
[1768714600155,0.97225992,3314.4,3313.3,0.13373163]
[1768714600360,0.13944154,3315.2,3314.1,0.97225992]
[1768714608567,0.13944154,3315.2,3313.8,1.83093]
[1768714608769,0.13944154,3315.2,3314.1,0.97225992]
[1768714610563,0.13944154,3315.2,3313.8,1.83093]
[1768714610564,0.13944154,3315.1,3313.8,0.15093]
[1768714610869,0.00261087,3315.3,3313.8,0.15093]
[1768714610870,0.13944154,3314.9,3313.8,0.15093]
[1768714613867,0.13688534,3314.7,3313.8,0.15093]
[1768714644987,0.13704962,3314.5,3313.2,5.4306197]
[1768714645485,0.13704962,3314.5,3313.1,0.15096]
[1768714646882,0.13704962,3314.5,3313.2,0.15096]
[1768714648592,0.13704962,3314.5,3313.3,0.15095]
[1768714649583,0.13704962,3314.5,3313.4,0.15095]
[1768714653482,0.13704962,3314.9,3313.5,0.15094]
[1768714653673,0.13704962,3314.9,3313.5,0.97218936]
[1768714654189,0.13704962,3314.9,3313.7,0.15094]
[1768714675201,0.13704962,3314.9,3313.6,0.146]
[1768714675410,0.00261087,3315.3,3313.9,1.12310936]
[1768714676707,0.00261087,3315.3,3314.0,0.15092]
[1768714681415,0.00261087,3315.3,3314.2,0.15091]
[1768714705324,0.00261087,3315.3,3314.4,0.97144055]
[1768714723231,0.00261087,3315.3,3314.3,0.15091]
[1768714743470,0.00261087,3315.3,3314.4,0.97144055]
[1768714751773,0.00261087,3315.3,3314.3,0.15091]
[1768714752072,0.00261087,3315.3,3314.5,0.97144055]
[1768714752467,0.00261087,3315.3,3314.3,1.12235055]
[1768714760076,0.00261087,3315.3,3314.3,0.15091]
[1768714761282,0.13457102,3315.3,3314.3,0.15091]
[1768714777192,0.00261087,3315.3,3314.3,0.15091]
[1768714778694,0.00261087,3315.3,3314.4,0.97163725]
[1768714778898,0.13517574,3316.1,3314.4,0.97163725]
[1768714779192,0.15081,3316.5,3314.4,0.97163725]
[1768714779193,1.42769261,3316.0,3314.4,0.97163725]
[1768714779394,0.13517574,3316.0,3314.4,0.97163725]
[1768714779587,0.13517574,3316.0,3314.5,0.1509]
[1768714779988,0.13892599,3316.0,3314.5,0.1509]
[1768714784898,0.13517574,3315.7,3314.5,0.1509]
[1768714799806,0.00375025,3316.0,3314.5,0.1509]
[1768714800005,1.00899939,3315.9,3314.5,0.1509]
[1768714800204,0.14314269,3316.0,3314.5,0.1509]
[1768714801602,0.00375025,3316.0,3314.5,0.25000986]
[1768714801994,0.00375025,3316.0,3314.6,0.09912936]
[1768714802995,0.14314269,3316.0,3314.6,0.15089]
[1768714827325,0.14314269,3316.0,3314.8,0.97123813]
[1768714827627,0.14314269,3316.0,3314.8,0.97461201]
[1768714834835,0.14314269,3316.0,3314.8,0.00337388]
[1768714835035,0.14046107,3315.6,3314.8,0.00337388]
[1768714850857,0.14046107,3315.4,3314.4,0.146]
[1768714851056,0.14046107,3315.4,3314.2,1.679]
[1768714851857,0.14046107,3315.4,3314.2,1.68243194]
[1768714853862,0.14046107,3315.4,3314.2,2.65367007]
[1768714862669,0.14046107,3315.4,3314.2,1.68243194]
[1768714868171,0.14046107,3315.4,3314.3,0.97123813]
[1768714868372,0.14190791,3315.9,3314.5,0.97123813]
[1768714868668,0.14190791,3315.9,3314.7,0.97123813]
[1768714870173,0.14190791,3315.9,3314.4,0.1509]
[1768714870471,0.14190791,3315.9,3314.6,0.97123813]
[1768714872077,1.11314604,3315.9,3314.6,0.97123813]
[1768714873274,0.14190791,3315.8,3314.6,0.97123813]
[1768714878879,0.14190791,3315.8,3314.5,0.97123813]
[1768714879082,1.11314604,3315.7,3314.5,0.97123813]
[1768714879478,0.14190791,3315.6,3314.5,0.97123813]
[1768714879981,0.14190791,3315.6,3314.4,0.1509]
[1768714882384,0.14190791,3315.6,3314.4,1.12213813]
[1768714887692,0.14190791,3315.6,3314.5,0.97123813]
[1768714889299,0.14190791,3315.6,3314.4,0.1509]
[1768714895505,0.13380889,3316.0,3314.4,0.1509]
[1768714908506,0.13380889,3316.0,3314.5,0.1509]
[1768714912816,0.13380889,3316.0,3314.2,0.00343194]
[1768714913111,0.13380889,3316.0,3314.7,0.15089]
[1768714950661,0.13380889,3316.0,3314.8,0.15089]
[1768714983780,0.14173909,3315.8,3314.8,0.15089]
[1768714984181,1.11298375,3315.5,3314.8,0.15089]
[1768714984577,0.14173909,3315.5,3314.8,0.15089]
[1768714987676,0.14173909,3315.5,3314.3,1.682]
[1768714987677,0.14173909,3316.5,3315.4,0.97124466]
[1768714987878,0.14173909,3316.5,3315.8,0.97124466]
[1768714988681,0.00224412,3316.5,3315.8,0.97124466]
[1768714989081,0.14173909,3316.9,3315.8,0.97124466]
[1768714989985,0.14473385,3316.9,3315.8,0.97124466]
[1768714997989,0.14473385,3316.9,3315.8,1.12208466]
[1768714998189,0.00299476,3316.9,3316.0,0.97124466]
[1768715005796,0.00299476,3316.9,3316.0,1.12207466]
[1768715011303,0.00299476,3316.9,3316.0,0.15083]
[1768715012511,0.00299476,3316.9,3315.5,1.07405604]
[1768715013606,0.00299476,3316.9,3316.2,0.15082]
[1768715015013,0.14776809,3317.4,3316.2,0.15082]
[1768715016114,0.1515252,3317.4,3316.2,0.15082]
[1768715048740,0.1515252,3317.4,3316.3,0.15082]
[1768715049051,0.00978611,3317.4,3316.3,0.15082]
[1768715073374,0.00978611,3317.4,3316.3,1.12117104]
[1768715077276,0.00978611,3317.4,3316.5,0.97035104]
[1768715081281,0.00978611,3317.4,3316.5,1.12116104]
[1768715091577,0.00978611,3317.4,3316.5,0.15081]
[1768715092785,0.00978611,3317.4,3316.6,0.1508]
[1768715092980,0.00978611,3317.4,3316.6,0.15423447]
[1768715096185,0.00978611,3317.4,3316.7,0.1508]
[1768715096692,1.10004667,3317.8,3316.7,0.1508]
[1768715097694,1.10381899,3317.8,3316.7,0.1508]
[1768715099197,0.13346795,3317.8,3316.7,0.1508]
[1768715100390,0.13346795,3317.8,3316.9,0.15079]
[1768715100596,0.00377232,3317.8,3316.9,0.15079]
[1768715101094,0.00377232,3317.8,3317.0,1.12114104]
[1768715104999,0.00377232,3317.8,3317.2,0.97035104]
[1768715105296,0.48620587,3318.5,3317.2,0.97035104]
[1768715106199,0.48620587,3318.5,3317.4,0.15076]
[1768715106396,0.4899303,3318.5,3317.6,0.15076]
[1768715106699,0.00372443,3318.5,3317.6,0.15076]
[1768715114599,0.1369178,3318.5,3317.6,0.15076]
[1768715115597,0.97035104,3318.4,3317.6,0.15076]
[1768715115793,0.13319337,3318.3,3316.6,0.00343447]
[1768715115994,1.10354441,3318.3,3316.9,0.97035104]
[1768715117608,1.10354441,3318.3,3317.2,0.15078]
[1768715119209,0.00372443,3318.5,3317.6,0.97035104]
[1768715119510,0.00372443,3318.5,3317.4,1.12112104]
[1768715119813,0.00372443,3318.5,3317.4,0.15077]
[1768715120313,0.00372443,3318.5,3317.5,0.97035104]
[1768715122810,0.00372443,3318.5,3317.4,0.15077]
[1768715123405,0.97407547,3318.5,3317.4,0.15077]
[1768715123820,0.00372443,3318.5,3317.4,0.15077]
[1768715124015,0.97035104,3318.4,3317.4,0.15077]
[1768715125416,0.14457764,3318.5,3317.4,0.15077]
[1768715125712,1.11492868,3318.5,3317.4,0.15077]
[1768715131615,0.14457764,3318.5,3317.4,0.15077]
[1768715136426,0.00372443,3318.5,3317.2,1.06978482]
[1768715136727,0.00372443,3318.5,3317.2,0.10000281]
[1768715137228,0.00372443,3318.5,3317.7,0.15075]
[1768715138422,0.00372443,3318.5,3317.8,0.15075]
[1768715143037,0.96978201,3319.5,3317.2,0.10000281]
[1768715143038,0.13088168,3319.5,3318.0,0.15074]
[1768715143339,0.13088168,3319.3,3318.0,0.15074]
[1768715144134,0.13355363,3319.3,3318.0,0.15074]
[1768715146334,0.13355363,3319.3,3318.1,0.15073]
[1768715149039,0.00267195,3319.3,3318.1,0.15073]
[1768715149239,0.00267195,3319.3,3318.4,0.15072]
[1768715149940,0.13088168,3319.7,3318.4,0.15072]
[1768715150733,0.13088168,3319.7,3317.7,5.4306197]
[1768715150935,0.13088168,3319.4,3317.7,5.4306197]
[1768715151439,0.13088168,3319.4,3317.6,0.15076]
[1768715152747,0.13088168,3319.4,3317.8,0.15075]
[1768715152942,0.13088168,3319.4,3317.9,0.15074]
[1768715154946,0.13088168,3319.4,3318.0,0.15074]
[1768715156536,0.13088168,3319.4,3318.1,0.15073]
[1768715167556,0.13088168,3319.4,3318.2,0.15073]
[1768715169359,0.13088168,3319.4,3318.3,0.15073]
[1768715173560,0.13088168,3319.4,3318.4,0.15072]
[1768715173758,0.13088168,3319.4,3318.5,0.15072]
[1768715175158,0.00371259,3319.7,3318.6,0.15071]
[1768715175953,0.00371259,3319.7,3318.7,0.15071]
[1768715180071,0.14330986,3320.4,3318.8,0.1507]
[1768715180252,1.14411473,3320.3,3318.8,0.1507]
[1768715180455,0.14330986,3320.3,3318.8,0.1507]
[1768715181066,0.14696145,3320.3,3318.8,0.1507]
[1768715185167,0.14696145,3320.3,3318.9,0.1507]
[1768715194269,0.14696145,3320.3,3319.0,0.15069]
[1768715194470,0.14696145,3320.3,3319.0,0.15383633]
[1768715197269,0.96902667,3320.0,3319.0,0.15383633]
[1768715197474,0.1317615,3319.9,3319.0,0.15383633]
[1768715202778,0.13541309,3320.3,3319.1,0.96902667]
[1768715209887,0.13541309,3320.3,3319.1,1.11971667]
[1768715211793,0.13541309,3320.3,3319.1,0.15069]
[1768715213598,1.10443976,3320.3,3319.1,0.15069]
[1768715214987,1.10443976,3320.3,3319.1,1.11971667]
[1768715216087,0.13541309,3320.3,3319.1,1.11971667]
[1768715218402,0.00365159,3320.3,3319.1,1.11971667]
[1768715218700,0.00365159,3320.3,3319.4,0.96902667]
[1768715220203,0.13157752,3320.2,3319.3,0.15068]
[1768715220397,0.13157752,3319.4,3318.2,5.5766197]
[1768715220697,0.96902667,3318.4,3317.1,1.11502667]
[1768715220899,1.00874456,3319.3,3315.7,0.13497249]
[1768715220900,0.13157752,3317.8,3315.7,0.13497249]
[1768715221198,0.96902667,3317.4,3315.8,0.96902667]
[1768715221405,0.00257794,3317.4,3316.1,0.96902667]
[1768715221603,0.00257794,3317.4,3316.4,1.11983667]
[1768715221903,0.00257794,3317.4,3316.4,1.12297906]
[1768715222200,0.00257794,3317.4,3316.6,0.00314239]
[1768715222591,0.00257794,3317.4,3316.8,0.00314239]
[1768715222791,0.00257794,3317.4,3316.7,0.00314239]
[1768715223204,0.00257794,3317.4,3316.9,0.00314239]
[1768715223501,0.00257794,3317.4,3316.7,0.00314239]
[1768715224204,0.00257794,3317.4,3316.9,0.00314239]
[1768715224408,0.00257794,3317.4,3316.8,0.00314239]
[1768715224896,0.00257794,3317.4,3316.9,0.00314239]
[1768715225091,0.00257794,3317.4,3316.8,0.00314239]
[1768715225494,0.00257794,3317.4,3316.9,0.00314239]
[1768715225693,0.00257794,3317.4,3316.8,0.00314239]
[1768715226197,0.00257794,3317.4,3316.9,0.00314239]
[1768715226397,0.00257794,3317.4,3316.8,0.00314239]
[1768715226805,0.00257794,3317.4,3316.9,0.00314239]
[1768715227004,0.00257794,3317.4,3316.8,0.00314239]
[1768715227192,0.00257794,3317.4,3316.9,0.00314239]
[1768715227600,0.00257794,3317.4,3317.0,0.00314239]
[1768715227801,0.00257794,3317.4,3316.9,0.00314239]
[1768715228506,0.00257794,3317.4,3317.0,0.00314239]
[1768715228706,0.00257794,3317.4,3316.9,0.00314239]
[1768715229206,0.00257794,3317.4,3317.0,0.00314239]
[1768715229409,0.00257794,3317.4,3316.9,0.00314239]
[1768715230203,0.00257794,3317.4,3317.0,0.00314239]
[1768715230405,0.00257794,3317.4,3316.9,0.00314239]
[1768715230901,0.00257794,3317.4,3317.0,0.00314239]
[1768715231096,0.00257794,3317.4,3316.9,0.00314239]
[1768715231603,0.00257794,3317.4,3316.5,0.15081]
[1768715231604,0.00257794,3317.4,3316.8,0.96902667]
[1768715231900,0.00257794,3317.4,3317.1,0.00314239]
[1768715232103,0.13157752,3318.2,3317.1,0.00314239]
[1768715232403,0.13157752,3318.2,3316.8,0.96902667]
[1768715232598,0.13157752,3318.2,3316.5,0.15081]
[1768715232906,1.10060419,3318.1,3316.7,0.96902667]
[1768715233401,0.96902667,3317.9,3316.5,0.15081]
[1768715233607,0.96902667,3317.7,3316.5,0.15081]
[1768715233804,0.96902667,3317.9,3316.6,0.96902667]
[1768715236009,0.00348364,3318.2,3316.5,0.15081]
[1768715236010,0.96902667,3317.3,3316.5,0.15081]
[1768715236199,0.96902667,3317.4,3316.5,0.15081]
[1768715236804,0.96902667,3317.6,3316.5,0.15081]
[1768715238009,0.13157752,3317.7,3316.5,0.15081]
[1768715240799,0.96902667,3317.6,3316.5,0.15081]
[1768715241104,1.10060419,3317.6,3316.5,0.15081]
[1768715241406,0.96902667,3317.5,3316.5,0.15081]
[1768715242508,1.11438573,3317.5,3316.5,0.15081]
[1768715246008,0.14535906,3317.5,3316.5,0.15081]
[1768715246214,1.11438573,3318.0,3316.5,0.15081]
[1768715246414,0.14535906,3317.9,3316.5,0.15081]
[1768715248218,1.06179717,3317.8,3316.5,0.15081]
[1768715248517,0.14535906,3317.9,3316.5,1.11983667]
[1768715248710,1.06179637,3317.8,3316.5,1.11983667]
[1768715248910,0.14535906,3317.9,3316.5,1.11983667]
[1768715249216,1.06179637,3317.8,3316.5,1.11983667]
[1768715249516,1.06179637,3317.7,3316.5,1.11983667]
[1768715249817,1.06179637,3317.6,3316.5,1.11983667]
[1768715250113,1.06179637,3317.5,3316.5,1.12297906]
[1768715250313,0.14535906,3317.9,3316.5,1.11983667]
[1768715250517,1.06494827,3317.8,3316.5,1.11983667]
[1768715250718,1.06494827,3317.7,3316.5,1.11983667]
[1768715251014,1.06494827,3317.6,3316.5,1.11983667]
[1768715251210,1.11438573,3317.9,3316.5,1.11983667]
[1768715251411,1.06493854,3317.8,3316.5,1.11983667]
[1768715251610,1.06493854,3317.7,3316.5,1.11983667]
[1768715251918,1.06493854,3317.6,3316.5,1.12297906]
[1768715252107,0.14535906,3317.9,3316.5,1.12297906]
[1768715252310,1.06493772,3317.8,3316.6,0.96902667]
[1768715252606,1.06493772,3317.7,3316.6,0.96902667]
[1768715252807,1.06493772,3317.6,3316.6,0.96902667]
[1768715253003,0.14535906,3317.9,3316.6,0.96902667]
[1768715253217,1.06492966,3317.8,3316.6,0.96902667]
[1768715253417,1.06492966,3317.7,3316.6,0.96902667]
[1768715253609,1.06492966,3317.6,3316.6,0.97216906]
[1768715253804,0.96902667,3318.1,3316.7,0.00314239]
[1768715254007,1.06494384,3318.0,3316.6,1.11982667]
[1768715254209,1.06494384,3317.9,3316.6,1.11982667]
[1768715254411,1.06494384,3317.8,3316.6,1.11982667]
[1768715254609,1.06494384,3317.7,3316.6,1.12296906]
[1768715254809,0.96902667,3318.1,3316.6,1.12296906]
[1768715255116,1.0649599,3318.0,3316.6,1.11982667]
[1768715255312,1.0649599,3317.9,3316.6,1.12296906]
[1768715255613,1.0649599,3317.8,3316.7,0.00314239]
[1768715255818,1.0649599,3317.7,3316.6,1.12296906]
[1768715256110,1.11266961,3318.1,3316.7,0.00314239]
[1768715256321,1.06499139,3318.0,3316.6,1.11982667]
[1768715256522,1.06499139,3317.9,3316.6,1.12296906]
[1768715256718,1.06499139,3317.8,3316.6,1.11982667]
[1768715256917,1.06499139,3317.7,3316.7,0.00314239]
[1768715257214,1.11266961,3318.1,3316.7,0.00314239]
[1768715257413,1.06505993,3318.0,3316.7,0.00314239]
[1768715257615,1.06505993,3317.9,3316.7,0.00314239]
[1768715257816,1.06505993,3317.8,3316.7,0.00314239]
[1768715258115,1.06505993,3317.7,3316.7,0.00314239]
[1768715258317,1.11266961,3318.1,3316.7,0.00314239]
[1768715258516,1.06509826,3318.0,3316.6,1.11982667]
[1768715258717,1.06509826,3317.9,3316.7,0.00314239]
[1768715258917,1.06509826,3317.8,3316.7,0.00314239]
[1768715259123,1.06509826,3317.7,3316.7,0.00314239]
[1768715259317,0.14364294,3318.1,3316.6,0.1508]
[1768715259519,1.06513998,3318.0,3316.6,0.15394239]
[1768715259718,1.06513998,3317.9,3316.6,0.15394239]
[1768715260022,1.06513998,3317.8,3316.7,0.00314239]
[1768715260225,1.06513998,3317.7,3316.7,0.00314239]
[1768715260420,0.14364294,3318.1,3316.7,0.00314239]
[1768715260624,1.0651939,3318.0,3316.6,0.1508]
[1768715260825,1.0651939,3317.9,3316.7,0.00314239]
[1768715261026,1.0651939,3317.8,3316.7,0.00314239]
[1768715261220,1.0651939,3317.7,3316.7,0.00314239]
[1768715261413,0.14364294,3318.1,3316.7,0.00314239]
[1768715261618,1.20889523,3318.0,3316.6,0.1508]
[1768715261922,1.06525229,3317.9,3316.6,0.15394239]
[1768715262124,1.06525229,3317.8,3316.7,0.00314239]
[1768715262416,1.06525229,3317.7,3316.7,0.00314239]
[1768715262616,0.14364294,3318.0,3316.8,0.00314239]
[1768715262815,1.06531527,3317.9,3316.7,0.00314239]
[1768715263022,1.06531527,3317.8,3316.7,0.00314239]
[1768715263222,1.06531527,3317.7,3316.8,0.00314239]
[1768715263423,0.14364294,3318.0,3316.7,0.00314239]
[1768715263623,1.06538418,3317.9,3316.7,0.00314239]
[1768715263833,1.06538418,3317.8,3316.8,0.00314239]
[1768715264025,1.06538418,3317.7,3316.8,0.00314239]
[1768715264225,0.14364294,3318.0,3316.8,0.00314239]
[1768715264419,1.06545383,3317.9,3316.9,0.00314239]
[1768715264622,1.06545383,3317.8,3316.8,0.15079]
[1768715264820,0.14364294,3318.0,3317.1,0.00314239]
[1768715265022,1.06544259,3317.9,3317.0,0.00314239]
[1768715265322,1.06544259,3317.8,3317.1,0.00314239]
[1768715265525,0.14364294,3318.0,3317.0,0.00314239]
[1768715265718,1.0654946,3317.9,3317.0,0.00314239]
[1768715265923,0.00348364,3318.2,3317.3,0.00314239]
[1768715266230,1.06548186,3318.1,3317.3,0.00314239]
[1768715266427,1.06548186,3318.0,3317.3,0.00314239]
[1768715266629,0.14712658,3318.2,3316.9,0.15079]
[1768715266828,1.06537946,3318.1,3317.2,0.00314239]
[1768715267028,1.06537946,3318.0,3317.2,0.00314239]
[1768715267226,0.14712658,3318.2,3317.3,0.00314239]
[1768715267426,1.06529711,3318.1,3317.2,0.00314239]
[1768715267627,1.06529711,3318.0,3317.2,0.00314239]
[1768715267826,0.14712658,3318.2,3317.3,0.00314239]
[1768715268132,1.0652971,3318.1,3317.2,0.00314239]
[1768715268333,1.0652971,3318.0,3317.2,0.00314239]
[1768715268522,0.14712658,3318.2,3317.4,0.00314239]
[1768715268728,0.14712658,3318.2,3317.1,0.00314239]
[1768715268729,1.06462377,3318.1,3317.1,0.00314239]
[1768715268931,0.14712658,3318.2,3317.1,0.00314239]
[1768715269232,0.14712658,3318.2,3317.3,0.00314239]
[1768715269734,0.14712658,3318.2,3317.4,0.00314239]
[1768715269934,0.14712658,3318.2,3317.3,0.00314239]
[1768715270234,0.14712658,3318.2,3317.0,0.15079]
[1768715270437,0.14712658,3318.2,3317.5,0.00314239]
[1768715271036,0.14712658,3318.2,3317.8,0.00314239]
[1768715271341,0.14712658,3318.2,3317.5,0.00314239]
[1768715271936,0.14712658,3318.2,3317.8,0.00314239]
[1768715272134,0.14712658,3318.2,3317.5,0.00314239]
[1768715272632,0.14712658,3318.2,3317.8,0.00314239]
[1768715272832,0.14712658,3318.2,3317.5,0.00314239]
[1768715273028,0.14712658,3318.2,3317.0,0.15079]
[1768715273335,0.14712658,3318.2,3317.6,0.00314239]
[1768715273836,0.14712658,3318.2,3317.9,0.00314239]
[1768715274137,0.14712658,3318.2,3317.6,0.00314239]
[1768715274541,0.14712658,3318.2,3317.9,0.00314239]
[1768715274834,0.14712658,3318.2,3317.6,0.00314239]
[1768715275030,0.14712658,3318.2,3317.4,0.00314239]
[1768715275227,0.14712658,3318.2,3317.6,0.00314239]
[1768715275928,0.14712658,3318.2,3317.9,0.00314239]
[1768715276236,0.14712658,3318.2,3317.6,0.00314239]
[1768715276431,0.14712658,3318.2,3317.9,0.00314239]
[1768715276634,0.14712658,3318.2,3317.6,0.00314239]
[1768715277024,0.14712658,3318.2,3317.9,0.00314239]
[1768715277230,0.14712658,3318.2,3317.6,0.00314239]
[1768715277634,0.14712658,3318.2,3317.9,0.00314239]
[1768715277835,0.14712658,3318.2,3317.6,0.00314239]
[1768715278330,0.14712658,3318.2,3317.9,0.00314239]
[1768715278536,0.14712658,3318.2,3317.4,0.00314239]